[Event "Titled Tuesday Blitz May 16 Late 2023"]
[White "Fishbein, Alexander"]
[Black "Moral Garcia, Serafin"]
[WhiteFideId "2000377"]
[BlackFideId "2201925"]
[WhiteElo "2415"]
[BlackElo "2274"]
[Result "1/2-1/2"]
[Round "08"]
[TimeControl "180+2"]
[Date "2023.05.16"]
[WhiteClock "0:00:06"]
[BlackClock "0:01:03"]

1. e4 {[%clk 0:03:00]}  e5 {[%clk 0:02:59]} 2. Nf3 {[%clk 0:03:00]}  Nf6 {[%clk 0:02:59]} 3. Nxe5 {[%clk 0:02:59]}  d6 {[%clk 0:03:00]} 4. Nf3 {[%clk 0:03:00]}  Nxe4 {[%clk 0:03:00]} 5. d3 {[%clk 0:03:00]}  Nf6 {[%clk 0:03:00]} 6. d4 {[%clk 0:03:01]}  d5 {[%clk 0:03:00]} 7. Bd3 {[%clk 0:03:00]}  Bd6 {[%clk 0:02:59]} 8. Qe2+ {[%clk 0:03:00]}  Qe7 {[%clk 0:02:58]} 9. Qxe7+ {[%clk 0:02:59]}  Kxe7 {[%clk 0:02:59]} 10. O-O {[%clk 0:02:58]}  Re8 {[%clk 0:02:55]} 11. Re1+ {[%clk 0:02:58]}  Kf8 {[%clk 0:02:55]} 12. Rxe8+ {[%clk 0:02:58]}  Kxe8 {[%clk 0:02:54]} 13. Nc3 {[%clk 0:02:59]}  c6 {[%clk 0:02:54]} 14. Bg5 {[%clk 0:02:59]}  Be7 {[%clk 0:02:53]} 15. Re1 {[%clk 0:02:55]}  Kf8 {[%clk 0:02:52]} 16. Bxh7 {[%clk 0:02:35]}  g6 {[%clk 0:02:42]} 17. Bh6+ {[%clk 0:02:02]}  Ke8 {[%clk 0:02:41]} 18. Ng5 {[%clk 0:02:03]}  Bf5 {[%clk 0:02:31]} 19. Bg7 {[%clk 0:01:58]}  Nxh7 {[%clk 0:02:30]} 20. Nxh7 {[%clk 0:01:56]}  Nd7 {[%clk 0:02:23]} 21. Nf6+ {[%clk 0:01:44]}  Kd8 {[%clk 0:02:21]} 22. Nxd7 {[%clk 0:01:42]}  Kxd7 {[%clk 0:02:21]} 23. Re2 {[%clk 0:01:14]}  f6 {[%clk 0:02:20]} 24. Bh6 {[%clk 0:01:13]}  g5 {[%clk 0:02:18]} 25. h4 {[%clk 0:01:09]}  Rg8 {[%clk 0:02:10]} 26. hxg5 {[%clk 0:01:08]}  fxg5 {[%clk 0:02:11]} 27. f4 {[%clk 0:01:08]}  gxf4 {[%clk 0:02:00]} 28. Bxf4 {[%clk 0:01:08]}  Rg4 {[%clk 0:01:58]} 29. g3 {[%clk 0:01:04]}  Bd6 {[%clk 0:01:52]} 30. Bxd6 {[%clk 0:01:03]}  Kxd6 {[%clk 0:01:52]} 31. Rf2 {[%clk 0:00:48]}  Rxg3+ {[%clk 0:01:48]} 32. Kh2 {[%clk 0:00:48]}  Rg5 {[%clk 0:01:48]} 33. Nd1 {[%clk 0:00:48]}  Be4 {[%clk 0:01:43]} 34. Ne3 {[%clk 0:00:44]}  Rg7 {[%clk 0:01:40]} 35. c3 {[%clk 0:00:38]}  a5 {[%clk 0:01:39]} 36. a3 {[%clk 0:00:33]}  b6 {[%clk 0:01:38]} 37. Rf6+ {[%clk 0:00:32]}  Kc7 {[%clk 0:01:37]} 38. Kh3 {[%clk 0:00:29]}  Rg1 {[%clk 0:01:30]} 39. Ng4 {[%clk 0:00:26]}  Rb1 {[%clk 0:01:23]} 40. Rf2 {[%clk 0:00:25]}  c5 {[%clk 0:01:22]} 41. Ne5 {[%clk 0:00:24]}  cxd4 {[%clk 0:01:21]} 42. cxd4 {[%clk 0:00:24]}  Rd1 {[%clk 0:01:21]} 43. Rf7+ {[%clk 0:00:22]}  Kd6 {[%clk 0:01:16]} 44. Rd7+ {[%clk 0:00:19]}  Ke6 {[%clk 0:01:16]} 45. Rb7 {[%clk 0:00:15]}  Rxd4 {[%clk 0:01:16]} 46. Nc6 {[%clk 0:00:12]}  Bf5+ {[%clk 0:01:15]} 47. Kg3 {[%clk 0:00:11]}  Rd3+ {[%clk 0:01:14]} 48. Kf4 {[%clk 0:00:11]}  Be4 {[%clk 0:01:11]} 49. Rxb6 {[%clk 0:00:09]}  Rf3+ {[%clk 0:01:11]} 50. Kg4 {[%clk 0:00:09]}  Kd7 {[%clk 0:01:05]} 51. Nxa5 {[%clk 0:00:09]}  Rf2 {[%clk 0:01:02]} 52. Nb3 {[%clk 0:00:08]}  Kc7 {[%clk 0:01:02]} 53. Rb4 {[%clk 0:00:08]}  Rxb2 {[%clk 0:01:01]} 54. Nc5 {[%clk 0:00:09]}  Rxb4 {[%clk 0:01:01]} 55. axb4 {[%clk 0:00:08]}  Kc6 {[%clk 0:01:02]} 56. Kf4 {[%clk 0:00:07]}  Kb5 {[%clk 0:01:02]} 57. Nxe4 {[%clk 0:00:06]}  dxe4 {[%clk 0:01:02]} 58. Kxe4 {[%clk 0:00:06]}  Kxb4 {[%clk 0:01:03]} 1/2-1/2


[Site "https://www.chess.com"]

[Event "Titled Tuesday Blitz May 16 Late 2023"]
[White "Bartel, Mateusz"]
[Black "Safin, Robert"]
[WhiteFideId "1112635"]
[BlackFideId "34189120"]
[WhiteElo "2521"]
[BlackElo "2295"]
[Result "1-0"]
[Round "08"]
[TimeControl "180+2"]
[Date "2023.05.16"]
[WhiteClock "0:00:24"]
[BlackClock "0:00:00"]

1. f4 {[%clk 0:02:58]}  c6 {[%clk 0:02:56]} 2. Nf3 {[%clk 0:02:54]}  h5 {[%clk 0:02:54]} 3. e4 {[%clk 0:02:48]}  d5 {[%clk 0:02:52]} 4. d3 {[%clk 0:02:35]}  Bg4 {[%clk 0:02:46]} 5. h3 {[%clk 0:02:23]}  Bxf3 {[%clk 0:02:43]} 6. Qxf3 {[%clk 0:02:24]}  e6 {[%clk 0:02:42]} 7. Nc3 {[%clk 0:02:18]}  Bb4 {[%clk 0:02:38]} 8. a3 {[%clk 0:02:17]}  Qa5 {[%clk 0:02:34]} 9. Bd2 {[%clk 0:01:48]}  d4 {[%clk 0:02:33]} 10. axb4 {[%clk 0:01:49]}  Qxa1+ {[%clk 0:02:32]} 11. Nd1 {[%clk 0:01:50]}  Qa4 {[%clk 0:02:13]} 12. c3 {[%clk 0:01:50]}  c5 {[%clk 0:01:43]} 13. bxc5 {[%clk 0:01:46]}  Nc6 {[%clk 0:01:42]} 14. Be2 {[%clk 0:01:41]}  O-O-O {[%clk 0:01:38]} 15. O-O {[%clk 0:01:34]}  Nge7 {[%clk 0:01:36]} 16. Qf2 {[%clk 0:01:27]}  f5 {[%clk 0:01:24]} 17. Bf3 {[%clk 0:01:16]}  Qb5 {[%clk 0:01:21]} 18. c4 {[%clk 0:01:08]}  Qxc5 {[%clk 0:01:19]} 19. Qe1 {[%clk 0:01:08]}  a5 {[%clk 0:01:15]} 20. Nf2 {[%clk 0:01:06]}  g6 {[%clk 0:00:53]} 21. Qe2 {[%clk 0:00:54]}  Rd6 {[%clk 0:00:23]} 22. Ra1 {[%clk 0:00:46]}  b6 {[%clk 0:00:12]} 23. Qe1 {[%clk 0:00:39]}  Kc7 {[%clk 0:00:09]} 24. Ra4 {[%clk 0:00:35]}  Rb8 {[%clk 0:00:08]} 25. b4 {[%clk 0:00:29]}  Nxb4 {[%clk 0:00:07]} 26. Rxb4 {[%clk 0:00:29]}  axb4 {[%clk 0:00:06]} 27. Bxb4 {[%clk 0:00:29]}  Ra8 {[%clk 0:00:02]} 28. Bxc5 {[%clk 0:00:23]}  bxc5 {[%clk 0:00:00]} 29. e5 {[%clk 0:00:24]} 1-0


[Site "https://www.chess.com"]

[Event "Titled Tuesday Blitz May 16 Late 2023"]
[White "Abduzhaparov"]
[Black "Novik, Maxim"]
[BlackFideId "4102924"]
[WhiteElo "2411"]
[BlackElo "2287"]
[Result "1-0"]
[Round "08"]
[TimeControl "180+2"]
[Date "2023.05.16"]
[WhiteClock "0:00:44"]
[BlackClock "0:00:30"]

1. Nf3 {[%clk 0:03:00]}  c5 {[%clk 0:02:54]} 2. c4 {[%clk 0:03:01]}  Nf6 {[%clk 0:02:53]} 3. Nc3 {[%clk 0:03:01]}  e6 {[%clk 0:02:53]} 4. g3 {[%clk 0:03:00]}  b6 {[%clk 0:02:50]} 5. Bg2 {[%clk 0:03:00]}  Bb7 {[%clk 0:02:51]} 6. O-O {[%clk 0:03:00]}  Be7 {[%clk 0:02:51]} 7. d4 {[%clk 0:03:00]}  cxd4 {[%clk 0:02:50]} 8. Qxd4 {[%clk 0:03:01]}  d6 {[%clk 0:02:49]} 9. Rd1 {[%clk 0:03:01]}  a6 {[%clk 0:02:45]} 10. Bg5 {[%clk 0:03:00]}  Nbd7 {[%clk 0:02:43]} 11. Rac1 {[%clk 0:02:59]}  O-O {[%clk 0:02:42]} 12. Qd2 {[%clk 0:02:59]}  Qc7 {[%clk 0:02:38]} 13. Bf4 {[%clk 0:02:54]}  e5 {[%clk 0:02:11]} 14. Bg5 {[%clk 0:02:54]}  Qxc4 {[%clk 0:02:02]} 15. Nxe5 {[%clk 0:02:53]}  dxe5 {[%clk 0:01:42]} 16. Bxb7 {[%clk 0:02:49]}  Qg4 {[%clk 0:01:13]} 17. Bxa8 {[%clk 0:02:43]}  Rxa8 {[%clk 0:01:14]} 18. Nd5 {[%clk 0:02:35]}  Bc5 {[%clk 0:01:07]} 19. Bxf6 {[%clk 0:02:16]}  Nxf6 {[%clk 0:01:07]} 20. Nxf6+ {[%clk 0:02:01]}  gxf6 {[%clk 0:01:06]} 21. Qd5 {[%clk 0:01:58]}  Re8 {[%clk 0:00:58]} 22. Qd7 {[%clk 0:01:50]}  Re6 {[%clk 0:00:58]} 23. b4 {[%clk 0:01:22]}  Qxb4 {[%clk 0:00:52]} 24. Qc8+ {[%clk 0:01:15]}  Kg7 {[%clk 0:00:49]} 25. Rd8 {[%clk 0:01:14]}  Qe4 {[%clk 0:00:44]} 26. Rxc5 {[%clk 0:00:55]}  bxc5 {[%clk 0:00:38]} 27. Rg8+ {[%clk 0:00:55]}  Kh6 {[%clk 0:00:38]} 28. Qf8+ {[%clk 0:00:55]}  Kh5 {[%clk 0:00:37]} 29. Qxf7+ {[%clk 0:00:55]}  Kh6 {[%clk 0:00:33]} 30. Qg7+ {[%clk 0:00:44]}  Kh5 {[%clk 0:00:32]} 31. g4+ {[%clk 0:00:44]}  Kh4 {[%clk 0:00:30]} 32. Qh6# {[%clk 0:00:44]} 1-0


[Site "https://www.chess.com"]

[Event "Titled Tuesday Blitz May 16 Late 2023"]
[White "Prieto Aranguren, Alain"]
[Black "Piesik, Piotr"]
[WhiteFideId "2268906"]
[BlackFideId "1136194"]
[WhiteElo "2209"]
[BlackElo "2299"]
[Result "0-1"]
[Round "08"]
[TimeControl "180+2"]
[Date "2023.05.16"]
[WhiteClock "0:01:06"]
[BlackClock "0:01:49"]

1. e4 {[%clk 0:02:50]}  g6 {[%clk 0:02:59]} 2. h4 {[%clk 0:02:50]}  h5 {[%clk 0:02:59]} 3. Nh3 {[%clk 0:02:49]}  c6 {[%clk 0:02:59]} 4. Ng5 {[%clk 0:02:49]}  d5 {[%clk 0:02:58]} 5. e5 {[%clk 0:02:48]}  Bg7 {[%clk 0:02:58]} 6. d4 {[%clk 0:02:48]}  Nh6 {[%clk 0:02:58]} 7. c3 {[%clk 0:02:46]}  f6 {[%clk 0:02:57]} 8. exf6 {[%clk 0:02:43]}  exf6 {[%clk 0:02:58]} 9. Nf3 {[%clk 0:02:41]}  Bg4 {[%clk 0:02:58]} 10. Be2 {[%clk 0:02:40]}  O-O {[%clk 0:02:57]} 11. O-O {[%clk 0:02:40]}  Nf5 {[%clk 0:02:57]} 12. g3 {[%clk 0:02:38]}  Re8 {[%clk 0:02:55]} 13. Re1 {[%clk 0:02:37]}  Nd7 {[%clk 0:02:55]} 14. Bf4 {[%clk 0:02:36]}  Nf8 {[%clk 0:02:54]} 15. Nh2 {[%clk 0:02:28]}  Bxe2 {[%clk 0:02:53]} 16. Rxe2 {[%clk 0:02:28]}  Ne6 {[%clk 0:02:48]} 17. Bd2 {[%clk 0:02:28]}  Qd6 {[%clk 0:02:46]} 18. Na3 {[%clk 0:02:26]}  Qd7 {[%clk 0:02:32]} 19. Nc2 {[%clk 0:02:24]}  Nd6 {[%clk 0:02:32]} 20. Qf1 {[%clk 0:02:12]}  Nc4 {[%clk 0:02:28]} 21. Bc1 {[%clk 0:02:10]}  Bf8 {[%clk 0:02:23]} 22. Ne3 {[%clk 0:02:09]}  Nd6 {[%clk 0:02:21]} 23. Ng2 {[%clk 0:02:05]}  Kf7 {[%clk 0:02:17]} 24. Nf4 {[%clk 0:02:04]}  Nxf4 {[%clk 0:02:15]} 25. Bxf4 {[%clk 0:02:04]}  Rxe2 {[%clk 0:02:16]} 26. Qxe2 {[%clk 0:02:03]}  Re8 {[%clk 0:02:16]} 27. Qf1 {[%clk 0:02:03]}  Nc4 {[%clk 0:02:12]} 28. b3 {[%clk 0:01:58]}  Na3 {[%clk 0:02:07]} 29. Re1 {[%clk 0:01:55]}  Nb5 {[%clk 0:02:05]} 30. Rxe8 {[%clk 0:01:49]}  Qxe8 {[%clk 0:02:06]} 31. Bd2 {[%clk 0:01:40]}  Qe4 {[%clk 0:02:05]} 32. Qe1 {[%clk 0:01:32]}  Qc2 {[%clk 0:01:57]} 33. a4 {[%clk 0:01:24]}  Nd6 {[%clk 0:01:56]} 34. g4 {[%clk 0:01:17]}  Ne4 {[%clk 0:01:53]} 35. Bf4 {[%clk 0:01:11]}  Qxc3 {[%clk 0:01:49]} 36. Qxc3 {[%clk 0:01:11]}  Nxc3 {[%clk 0:01:50]} 37. gxh5 {[%clk 0:01:06]}  Ne2+ {[%clk 0:01:49]} 0-1


[Site "https://www.chess.com"]

[Event "Titled Tuesday Blitz May 16 Late 2023"]
[White "Domingo Nunez, Alejandro"]
[Black "Rodriguez Polo, Mateo"]
[WhiteFideId "22245561"]
[BlackFideId "24509396"]
[WhiteElo "2291"]
[BlackElo "2117"]
[Result "0-1"]
[Round "08"]
[TimeControl "180+2"]
[Date "2023.05.16"]
[WhiteClock "0:00:00"]
[BlackClock "0:00:12"]

1. Nf3 {[%clk 0:03:00]}  d5 {[%clk 0:02:59]} 2. g3 {[%clk 0:03:01]}  e6 {[%clk 0:03:00]} 3. Bg2 {[%clk 0:03:01]}  Nf6 {[%clk 0:03:01]} 4. O-O {[%clk 0:03:01]}  Be7 {[%clk 0:03:02]} 5. c4 {[%clk 0:03:02]}  O-O {[%clk 0:03:03]} 6. b3 {[%clk 0:03:02]}  b6 {[%clk 0:03:02]} 7. Bb2 {[%clk 0:03:02]}  c5 {[%clk 0:03:03]} 8. cxd5 {[%clk 0:03:01]}  Nxd5 {[%clk 0:03:03]} 9. d4 {[%clk 0:03:01]}  Bb7 {[%clk 0:03:02]} 10. dxc5 {[%clk 0:03:00]}  Bxc5 {[%clk 0:03:01]} 11. Nbd2 {[%clk 0:02:58]}  Nd7 {[%clk 0:02:59]} 12. a3 {[%clk 0:02:54]}  N5f6 {[%clk 0:02:53]} 13. b4 {[%clk 0:02:54]}  Be7 {[%clk 0:02:48]} 14. Rc1 {[%clk 0:02:54]}  Rc8 {[%clk 0:02:48]} 15. Qa4 {[%clk 0:02:54]}  Rxc1 {[%clk 0:02:46]} 16. Rxc1 {[%clk 0:02:53]}  Qa8 {[%clk 0:02:46]} 17. Rc7 {[%clk 0:02:48]}  Rd8 {[%clk 0:02:27]} 18. Bxf6 {[%clk 0:02:40]}  Nxf6 {[%clk 0:01:22]} 19. Rxe7 {[%clk 0:02:36]}  Rc8 {[%clk 0:01:21]} 20. Nh4 {[%clk 0:01:08]}  Bxg2 {[%clk 0:01:22]} 21. Nxg2 {[%clk 0:01:08]}  a6 {[%clk 0:01:12]} 22. b5 {[%clk 0:00:47]}  Kf8 {[%clk 0:01:05]} 23. Qb4 {[%clk 0:00:45]}  Rc1+ {[%clk 0:00:54]} 24. Nf1 {[%clk 0:00:44]}  Rc5 {[%clk 0:00:55]} 25. Rc7 {[%clk 0:00:12]}  Nd5 {[%clk 0:00:42]} 26. Rxc5 {[%clk 0:00:13]}  Nxb4 {[%clk 0:00:40]} 27. Rc4 {[%clk 0:00:12]}  Nd5 {[%clk 0:00:34]} 28. bxa6 {[%clk 0:00:12]}  Qxa6 {[%clk 0:00:33]} 29. Rc6 {[%clk 0:00:05]}  Qxe2 {[%clk 0:00:18]} 30. Nge3 {[%clk 0:00:04]}  Nxe3 {[%clk 0:00:18]} 31. Nxe3 {[%clk 0:00:05]}  Qb2 {[%clk 0:00:17]} 32. Nc4 {[%clk 0:00:02]}  Qc1+ {[%clk 0:00:14]} 33. Kg2 {[%clk 0:00:00]}  b5 {[%clk 0:00:12]} 0-1


[Site "https://www.chess.com"]

[Event "Titled Tuesday Blitz May 16 Late 2023"]
[White "Bashkansky, Ethan"]
[Black "Melikyan, Gnel"]
[WhiteFideId "2071533"]
[BlackFideId "54109990"]
[WhiteElo "2327"]
[BlackElo "2138"]
[Result "0-1"]
[Round "08"]
[TimeControl "180+2"]
[Date "2023.05.16"]
[WhiteClock "0:00:02"]
[BlackClock "0:01:05"]

1. d4 {[%clk 0:03:00]}  f5 {[%clk 0:02:46]} 2. Nc3 {[%clk 0:03:00]}  Nf6 {[%clk 0:02:44]} 3. Bg5 {[%clk 0:03:00]}  e6 {[%clk 0:02:40]} 4. e4 {[%clk 0:02:54]}  fxe4 {[%clk 0:02:38]} 5. Nxe4 {[%clk 0:02:54]}  Be7 {[%clk 0:02:39]} 6. Bxf6 {[%clk 0:02:54]}  Bxf6 {[%clk 0:02:37]} 7. Nf3 {[%clk 0:02:50]}  O-O {[%clk 0:02:36]} 8. Bd3 {[%clk 0:02:48]}  Nc6 {[%clk 0:02:35]} 9. Nxf6+ {[%clk 0:02:41]}  Qxf6 {[%clk 0:02:34]} 10. O-O {[%clk 0:02:42]}  d6 {[%clk 0:02:30]} 11. Bb5 {[%clk 0:02:24]}  Bd7 {[%clk 0:02:28]} 12. c3 {[%clk 0:02:03]}  Rae8 {[%clk 0:02:27]} 13. Re1 {[%clk 0:01:54]}  a6 {[%clk 0:02:21]} 14. Bxc6 {[%clk 0:01:47]}  Bxc6 {[%clk 0:02:21]} 15. Re3 {[%clk 0:01:42]}  g5 {[%clk 0:02:16]} 16. Qe2 {[%clk 0:01:32]}  h6 {[%clk 0:02:12]} 17. Re1 {[%clk 0:01:28]}  Qf5 {[%clk 0:02:05]} 18. Rxe6 {[%clk 0:01:05]}  g4 {[%clk 0:01:47]} 19. Nh4 {[%clk 0:00:32]}  Qh5 {[%clk 0:01:44]} 20. g3 {[%clk 0:00:13]}  Qg5 {[%clk 0:01:19]} 21. Rg6+ {[%clk 0:00:07]}  Kh7 {[%clk 0:01:18]} 22. Rxg5 {[%clk 0:00:05]}  Rxe2 {[%clk 0:01:18]} 23. Rxe2 {[%clk 0:00:04]}  hxg5 {[%clk 0:01:18]} 24. Ng2 {[%clk 0:00:05]}  Rf7 {[%clk 0:01:13]} 25. Ne3 {[%clk 0:00:04]}  Bf3 {[%clk 0:01:12]} 26. Re1 {[%clk 0:00:04]}  Kg6 {[%clk 0:01:12]} 27. Nc2 {[%clk 0:00:05]}  Kf6 {[%clk 0:01:11]} 28. a3 {[%clk 0:00:04]}  Rh7 {[%clk 0:01:10]} 29. Re3 {[%clk 0:00:04]}  Rh8 {[%clk 0:01:10]} 30. Ne1 {[%clk 0:00:05]}  Bd5 {[%clk 0:01:09]} 31. Nd3 {[%clk 0:00:05]}  b5 {[%clk 0:01:08]} 32. Nb4 {[%clk 0:00:05]}  Bb7 {[%clk 0:01:08]} 33. Nd3 {[%clk 0:00:05]}  a5 {[%clk 0:01:08]} 34. Ne1 {[%clk 0:00:05]}  Bd5 {[%clk 0:01:07]} 35. f3 {[%clk 0:00:05]}  gxf3 {[%clk 0:01:07]} 36. Nxf3 {[%clk 0:00:06]}  b4 {[%clk 0:01:05]} 37. cxb4 {[%clk 0:00:06]}  axb4 {[%clk 0:01:05]} 38. axb4 {[%clk 0:00:06]}  Rb8 {[%clk 0:01:06]} 39. Ne1 {[%clk 0:00:03]}  Rxb4 {[%clk 0:01:06]} 40. Nd3 {[%clk 0:00:04]}  Rxd4 {[%clk 0:01:06]} 41. Kf2 {[%clk 0:00:04]}  c5 {[%clk 0:01:07]} 42. Ke2 {[%clk 0:00:04]}  Bc4 {[%clk 0:01:04]} 43. Rf3+ {[%clk 0:00:03]}  Kg6 {[%clk 0:01:04]} 44. Re3 {[%clk 0:00:03]}  Bb5 {[%clk 0:01:01]} 45. Kd2 {[%clk 0:00:03]}  c4 {[%clk 0:01:01]} 46. Kc3 {[%clk 0:00:03]}  Rxd3+ {[%clk 0:01:01]} 47. Rxd3 {[%clk 0:00:04]}  cxd3 {[%clk 0:01:02]} 48. Kd2 {[%clk 0:00:04]}  d5 {[%clk 0:01:02]} 49. h3 {[%clk 0:00:05]}  d4 {[%clk 0:01:03]} 50. Ke1 {[%clk 0:00:04]}  Kf5 {[%clk 0:01:04]} 51. Kd2 {[%clk 0:00:05]}  Ke4 {[%clk 0:01:04]} 52. Ke1 {[%clk 0:00:04]}  Bd7 {[%clk 0:01:04]} 53. h4 {[%clk 0:00:04]}  Ke3 {[%clk 0:01:05]} 54. hxg5 {[%clk 0:00:03]}  d2+ {[%clk 0:01:05]} 55. Kf1 {[%clk 0:00:02]}  Kf3 {[%clk 0:01:05]} 56. Kg1 {[%clk 0:00:02]}  Kxg3 {[%clk 0:01:05]} 57. Kf1 {[%clk 0:00:02]}  Bb5+ {[%clk 0:01:05]} 58. Kg1 {[%clk 0:00:02]}  d1=Q# {[%clk 0:01:05]} 0-1


[Site "https://www.chess.com"]

[Event "Titled Tuesday Blitz May 16 Late 2023"]
[White "AyMitecK"]
[Black "Djordjevic, Dejan N"]
[BlackFideId "913316"]
[WhiteElo "2564"]
[BlackElo "2261"]
[Result "1-0"]
[Round "08"]
[TimeControl "180+2"]
[Date "2023.05.16"]
[WhiteClock "0:00:20"]
[BlackClock "0:00:00"]

1. e4 {[%clk 0:02:58]}  c5 {[%clk 0:02:59]} 2. Nf3 {[%clk 0:02:58]}  Nc6 {[%clk 0:02:59]} 3. Bb5 {[%clk 0:02:58]}  g6 {[%clk 0:02:59]} 4. O-O {[%clk 0:02:58]}  Bg7 {[%clk 0:02:59]} 5. Re1 {[%clk 0:02:58]}  Nf6 {[%clk 0:02:59]} 6. e5 {[%clk 0:02:59]}  Nd5 {[%clk 0:02:59]} 7. Nc3 {[%clk 0:03:00]}  Nc7 {[%clk 0:02:59]} 8. Bxc6 {[%clk 0:03:01]}  dxc6 {[%clk 0:02:58]} 9. Ne4 {[%clk 0:03:01]}  b6 {[%clk 0:02:57]} 10. Nf6+ {[%clk 0:03:02]}  Kf8 {[%clk 0:02:52]} 11. Ne4 {[%clk 0:03:02]}  h6 {[%clk 0:02:51]} 12. d3 {[%clk 0:03:02]}  Be6 {[%clk 0:02:45]} 13. Ned2 {[%clk 0:03:03]}  Kg8 {[%clk 0:02:45]} 14. a4 {[%clk 0:03:02]}  a5 {[%clk 0:02:45]} 15. b3 {[%clk 0:03:01]}  Kh7 {[%clk 0:02:44]} 16. Nc4 {[%clk 0:03:00]}  Rb8 {[%clk 0:02:43]} 17. Bb2 {[%clk 0:02:55]}  Qd7 {[%clk 0:02:43]} 18. h3 {[%clk 0:02:54]}  Rhd8 {[%clk 0:02:43]} 19. Re4 {[%clk 0:02:52]}  Nd5 {[%clk 0:02:34]} 20. Qd2 {[%clk 0:02:48]}  Kg8 {[%clk 0:02:28]} 21. Rae1 {[%clk 0:02:47]}  Nb4 {[%clk 0:02:07]} 22. Bc1 {[%clk 0:02:41]}  b5 {[%clk 0:01:52]} 23. Nxa5 {[%clk 0:02:37]}  Ra8 {[%clk 0:01:46]} 24. Rxb4 {[%clk 0:02:10]}  cxb4 {[%clk 0:01:46]} 25. Qxb4 {[%clk 0:02:10]}  bxa4 {[%clk 0:01:37]} 26. bxa4 {[%clk 0:02:09]}  c5 {[%clk 0:01:35]} 27. Qxc5 {[%clk 0:02:04]}  Qxa4 {[%clk 0:01:28]} 28. Nc6 {[%clk 0:02:00]}  Rd7 {[%clk 0:01:19]} 29. Bb2 {[%clk 0:01:47]}  Kh7 {[%clk 0:01:19]} 30. Ra1 {[%clk 0:01:44]}  Qxa1+ {[%clk 0:01:06]} 31. Bxa1 {[%clk 0:01:44]}  Rxa1+ {[%clk 0:01:07]} 32. Kh2 {[%clk 0:01:45]}  Bd5 {[%clk 0:00:54]} 33. Nxe7 {[%clk 0:01:40]}  Bb7 {[%clk 0:00:46]} 34. Nc6 {[%clk 0:01:31]}  Rc7 {[%clk 0:00:44]} 35. Qb6 {[%clk 0:01:24]}  Rd7 {[%clk 0:00:43]} 36. d4 {[%clk 0:01:13]}  Ra6 {[%clk 0:00:42]} 37. Qb5 {[%clk 0:00:51]}  Rxc6 {[%clk 0:00:42]} 38. c4 {[%clk 0:00:50]}  Rcc7 {[%clk 0:00:36]} 39. d5 {[%clk 0:00:48]}  Ba6 {[%clk 0:00:36]} 40. Qxa6 {[%clk 0:00:46]}  Ra7 {[%clk 0:00:26]} 41. Qb6 {[%clk 0:00:45]}  Rab7 {[%clk 0:00:26]} 42. Qd4 {[%clk 0:00:45]}  Rb4 {[%clk 0:00:23]} 43. Qc5 {[%clk 0:00:43]}  Rbb7 {[%clk 0:00:21]} 44. d6 {[%clk 0:00:42]}  Ra7 {[%clk 0:00:18]} 45. Qd5 {[%clk 0:00:42]}  Ra2 {[%clk 0:00:13]} 46. c5 {[%clk 0:00:42]}  Rxf2 {[%clk 0:00:13]} 47. c6 {[%clk 0:00:41]}  Rd8 {[%clk 0:00:13]} 48. c7 {[%clk 0:00:41]}  Rc8 {[%clk 0:00:13]} 49. d7 {[%clk 0:00:41]}  Rxc7 {[%clk 0:00:13]} 50. d8=Q {[%clk 0:00:42]}  Rcc2 {[%clk 0:00:13]} 51. Ne1 {[%clk 0:00:37]}  Rce2 {[%clk 0:00:12]} 52. Q5a8 {[%clk 0:00:32]}  Bxe5+ {[%clk 0:00:11]} 53. Kg1 {[%clk 0:00:28]}  h5 {[%clk 0:00:02]} 54. Qg8+ {[%clk 0:00:21]}  Kh6 {[%clk 0:00:02]} 55. Qgf8+ {[%clk 0:00:22]}  Kg5 {[%clk 0:00:00]} 56. h4+ {[%clk 0:00:20]} 1-0


[Site "https://www.chess.com"]

[Event "Titled Tuesday Blitz May 16 Late 2023"]
[White "Stork, Oliver"]
[Black "Papasimakopoulos, Alexandros"]
[WhiteFideId "12955728"]
[BlackFideId "4244125"]
[WhiteElo "2239"]
[BlackElo "2359"]
[Result "0-1"]
[Round "08"]
[TimeControl "180+2"]
[Date "2023.05.16"]
[WhiteClock "0:01:42"]
[BlackClock "0:01:06"]

1. e4 {[%clk 0:03:00]}  c5 {[%clk 0:02:46]} 2. Nc3 {[%clk 0:02:59]}  Nc6 {[%clk 0:02:44]} 3. g3 {[%clk 0:02:58]}  g6 {[%clk 0:02:45]} 4. Bg2 {[%clk 0:02:58]}  Bg7 {[%clk 0:02:45]} 5. d3 {[%clk 0:02:58]}  d6 {[%clk 0:02:43]} 6. Be3 {[%clk 0:02:57]}  Nd4 {[%clk 0:02:37]} 7. Qd2 {[%clk 0:02:54]}  h5 {[%clk 0:02:37]} 8. Nd1 {[%clk 0:02:54]}  h4 {[%clk 0:02:32]} 9. c3 {[%clk 0:02:51]}  h3 {[%clk 0:02:21]} 10. Bf1 {[%clk 0:02:47]}  Nc6 {[%clk 0:02:20]} 11. f4 {[%clk 0:02:47]}  Nf6 {[%clk 0:02:18]} 12. Nf3 {[%clk 0:02:47]}  Ng4 {[%clk 0:02:19]} 13. Be2 {[%clk 0:02:46]}  Nxe3 {[%clk 0:02:18]} 14. Nxe3 {[%clk 0:02:47]}  b5 {[%clk 0:02:11]} 15. O-O {[%clk 0:02:37]}  Rb8 {[%clk 0:02:11]} 16. d4 {[%clk 0:02:36]}  cxd4 {[%clk 0:02:08]} 17. cxd4 {[%clk 0:02:37]}  Qb6 {[%clk 0:02:05]} 18. Rfd1 {[%clk 0:02:35]}  e6 {[%clk 0:01:58]} 19. Rac1 {[%clk 0:02:31]}  Na5 {[%clk 0:01:44]} 20. Kh1 {[%clk 0:02:22]}  O-O {[%clk 0:01:38]} 21. Ng5 {[%clk 0:02:20]}  Bb7 {[%clk 0:01:35]} 22. Bf3 {[%clk 0:02:19]}  Nc4 {[%clk 0:01:31]} 23. Nxc4 {[%clk 0:02:17]}  bxc4 {[%clk 0:01:31]} 24. Rxc4 {[%clk 0:02:16]}  d5 {[%clk 0:01:32]} 25. exd5 {[%clk 0:02:14]}  Bxd5 {[%clk 0:01:32]} 26. Bxd5 {[%clk 0:02:13]}  exd5 {[%clk 0:01:32]} 27. Rc2 {[%clk 0:02:13]}  Qa6 {[%clk 0:01:22]} 28. b3 {[%clk 0:02:07]}  Rfe8 {[%clk 0:01:20]} 29. Nxh3 {[%clk 0:02:04]}  Re4 {[%clk 0:01:21]} 30. Qf2 {[%clk 0:01:57]}  Rbe8 {[%clk 0:01:18]} 31. Ng5 {[%clk 0:01:50]}  Re2 {[%clk 0:01:09]} 32. Rxe2 {[%clk 0:01:49]}  Rxe2 {[%clk 0:01:10]} 33. Qf3 {[%clk 0:01:50]}  Qxa2 {[%clk 0:01:07]} 34. Rf1 {[%clk 0:01:42]}  Rxh2+ {[%clk 0:01:06]} 0-1


[Site "https://www.chess.com"]